[Event "*** Titled Tuesday Blitz"]
[Site "Chess.com"]
[Date "2020.05.26"]
[Round "4"]
[White "1f3_2g41-0"]
[Black "KaterinaMiroshnik"]
[Result "1-0"]
[WhiteElo "2264"]
[BlackElo "2408"]
[TimeControl "180+1"]
[EndTime "10:38:45 PDT"]
[Termination "1f3_2g41-0 won by checkmate"]

1. e4 {[%clk 0:03:00.9]} 1... e6 {[%clk 0:02:59.7]} 2. d4 {[%clk 0:03:00.6]}
2... d5 {[%clk 0:03:00.5]} 3. Nc3 {[%clk 0:03:00.1]} 3... Nf6 {[%clk 0:03:00.2]}
4. exd5 {[%clk 0:02:59.9]} 4... exd5 {[%clk 0:02:59.2]} 5. Bd3 {[%clk
0:02:59.9]} 5... Bb4 {[%clk 0:02:59.3]} 6. Ne2 {[%clk 0:02:58.9]} 6... O-O
{[%clk 0:02:58.8]} 7. O-O {[%clk 0:02:58.6]} 7... c5 {[%clk 0:02:58.8]} 8. dxc5
{[%clk 0:02:57.8]} 8... Bxc5 {[%clk 0:02:59.7]} 9. Bg5 {[%clk 0:02:57.7]} 9...
Be7 {[%clk 0:02:55.1]} 10. Bxf6 {[%clk 0:02:53]} 10... Bxf6 {[%clk 0:02:54.6]}
11. Nxd5 {[%clk 0:02:53.1]} 11... Bxb2 {[%clk 0:02:50.8]} 12. Rb1 {[%clk
0:02:52.3]} 12... Ba3 {[%clk 0:02:47.9]} 13. Nec3 {[%clk 0:02:44.2]} 13... Nc6
{[%clk 0:02:43.7]} 14. Nb5 {[%clk 0:02:42.4]} 14... Bc5 {[%clk 0:02:31.5]} 15.
Ndc7 {[%clk 0:02:40]} 15... Rb8 {[%clk 0:02:30.5]} 16. Qh5 {[%clk 0:02:00.5]}
16... f5 {[%clk 0:02:27.6]} 17. Bc4+ {[%clk 0:02:00.8]} 17... Kh8 {[%clk
0:02:24.6]} 18. Rbd1 {[%clk 0:01:59.2]} 18... Qf6 {[%clk 0:02:21.3]} 19. Rfe1
{[%clk 0:01:49.8]} 19... Ne5 {[%clk 0:02:16.4]} 20. Bb3 {[%clk 0:01:09.7]} 20...
a6 {[%clk 0:02:11.8]} 21. Nc3 {[%clk 0:00:50.7]} 21... Ng4 {[%clk 0:02:06.8]}
22. N7d5 {[%clk 0:00:35.1]} 22... Qd6 {[%clk 0:01:52.3]} 23. Ne3 {[%clk
0:00:31.4]} 23... Qb6 {[%clk 0:01:46]} 24. Ncd5 {[%clk 0:00:28.4]} 24... Qh6
{[%clk 0:01:39.8]} 25. Qxh6 {[%clk 0:00:25.9]} 25... Nxh6 {[%clk 0:01:40.7]} 26.
Nf4 {[%clk 0:00:19.5]} 26... b5 {[%clk 0:01:33.1]} 27. Rd5 {[%clk 0:00:13.1]}
27... Bxe3 {[%clk 0:01:26.8]} 28. Rxe3 {[%clk 0:00:14]} 28... Bb7 {[%clk
0:01:26.1]} 29. Rd7 {[%clk 0:00:11.9]} 29... Rbd8 {[%clk 0:01:21.9]} 30. Red3
{[%clk 0:00:11]} 30... Rxd7 {[%clk 0:01:19.6]} 31. Rxd7 {[%clk 0:00:11.9]} 31...
Be4 {[%clk 0:01:17.4]} 32. Ne6 {[%clk 0:00:11]} 32... Rc8 {[%clk 0:01:07.3]} 33.
f3 {[%clk 0:00:03.3]} 33... Bxc2 {[%clk 0:00:58.2]} 34. Bxc2 {[%clk 0:00:04.2]}
34... Rxc2 {[%clk 0:00:58.2]} 35. Nxg7 {[%clk 0:00:04.9]} 35... Rc1+ {[%clk
0:00:56.7]} 36. Kf2 {[%clk 0:00:04.8]} 36... Rc2+ {[%clk 0:00:57.6]} 37. Kg3
{[%clk 0:00:05.3]} 37... Ng8 {[%clk 0:00:57.2]} 38. Nxf5 {[%clk 0:00:04.6]}
38... Rc4 {[%clk 0:00:56.4]} 39. Rd8 {[%clk 0:00:04.6]} 39... Rc5 {[%clk
0:00:46.8]} 40. Ne7 {[%clk 0:00:04.2]} 40... Rg5+ {[%clk 0:00:45.7]} 41. Kf4
{[%clk 0:00:04.8]} 41... Rg7 {[%clk 0:00:46.2]} 42. Rxg8+ {[%clk 0:00:05.2]}
42... Rxg8 {[%clk 0:00:47.1]} 43. Nxg8 {[%clk 0:00:06]} 43... Kxg8 {[%clk
0:00:47.6]} 44. Ke5 {[%clk 0:00:06.9]} 44... Kf7 {[%clk 0:00:47.9]} 45. Kd6
{[%clk 0:00:07.8]} 45... Kf6 {[%clk 0:00:47.9]} 46. Kc5 {[%clk 0:00:08.7]} 46...
Ke5 {[%clk 0:00:45.8]} 47. Kb6 {[%clk 0:00:09]} 47... Kd5 {[%clk 0:00:43.5]} 48.
Kxa6 {[%clk 0:00:09.4]} 48... Kc4 {[%clk 0:00:44.4]} 49. f4 {[%clk 0:00:09.9]}
49... Kb4 {[%clk 0:00:44]} 50. f5 {[%clk 0:00:10.5]} 50... Ka4 {[%clk
0:00:44.9]} 51. f6 {[%clk 0:00:11.1]} 51... b4 {[%clk 0:00:45]} 52. f7 {[%clk
0:00:12]} 52... Ka3 {[%clk 0:00:45.2]} 53. f8=Q {[%clk 0:00:12.9]} 53... Kxa2
{[%clk 0:00:45.5]} 54. Qxb4 {[%clk 0:00:13.5]} 54... h5 {[%clk 0:00:44.8]} 55.
Kb5 {[%clk 0:00:14.4]} 55... h4 {[%clk 0:00:45.4]} 56. Kc4 {[%clk 0:00:15.3]}
56... h3 {[%clk 0:00:45.9]} 57. Kc3 {[%clk 0:00:16.2]} 57... hxg2 {[%clk
0:00:44.5]} 58. Qb2# {[%clk 0:00:17.1]} 1-0

[Event "*** Titled Tuesday Blitz"]
[Site "Chess.com"]
[Date "2020.05.26"]
[Round "4"]
[White "Gandrade2"]
[Black "BabyFacedAssasin"]
[Result "0-1"]
[WhiteElo "2009"]
[BlackElo "2234"]
[TimeControl "180+1"]
[EndTime "10:38:47 PDT"]
[Termination "BabyFacedAssasin won on time"]

1. d4 {[%clk 0:03:00.9]} 1... f5 {[%clk 0:02:55.9]} 2. Nf3 {[%clk 0:03:00.1]}
2... Nf6 {[%clk 0:02:55.6]} 3. g3 {[%clk 0:03:00.4]} 3... g6 {[%clk 0:02:55.9]}
4. Bg2 {[%clk 0:03:00.2]} 4... Bg7 {[%clk 0:02:56.3]} 5. O-O {[%clk 0:02:59.4]}
5... O-O {[%clk 0:02:55.9]} 6. b3 {[%clk 0:02:59.8]} 6... d6 {[%clk 0:02:55.6]}
7. Bb2 {[%clk 0:02:59.4]} 7... c6 {[%clk 0:02:56.1]} 8. Nc3 {[%clk 0:02:58.4]}
8... Qc7 {[%clk 0:02:53.9]} 9. e4 {[%clk 0:02:58.3]} 9... fxe4 {[%clk
0:02:51.5]} 10. Ng5 {[%clk 0:02:53.4]} 10... d5 {[%clk 0:02:51.4]} 11. f3 {[%clk
0:02:20.5]} 11... h6 {[%clk 0:02:45.3]} 12. Nh3 {[%clk 0:02:18.8]} 12... exf3
{[%clk 0:02:43.4]} 13. Qxf3 {[%clk 0:02:15.2]} 13... Nbd7 {[%clk 0:02:22.2]} 14.
Rae1 {[%clk 0:02:12.3]} 14... Ne4 {[%clk 0:02:07.1]} 15. Qe3 {[%clk 0:02:10.1]}
15... Nxc3 {[%clk 0:02:04.5]} 16. Bxc3 {[%clk 0:02:09.3]} 16... Nf6 {[%clk
0:01:57.4]} 17. Nf4 {[%clk 0:02:09.2]} 17... Bf5 {[%clk 0:01:53.8]} 18. Ne6
{[%clk 0:01:19.8]} 18... Bxe6 {[%clk 0:01:53.2]} 19. Qxe6+ {[%clk 0:01:20.5]}
19... Rf7 {[%clk 0:01:53.9]} 20. Bd2 {[%clk 0:01:11.5]} 20... Qd7 {[%clk
0:01:45.1]} 21. Bh3 {[%clk 0:01:10.3]} 21... Qd6 {[%clk 0:01:35.8]} 22. Bf4
{[%clk 0:00:51.3]} 22... Qb4 {[%clk 0:01:30.7]} 23. g4 {[%clk 0:00:20.4]} 23...
Rf8 {[%clk 0:01:13.2]} 24. g5 {[%clk 0:00:19.4]} 24... hxg5 {[%clk 0:01:10]} 25.
Bxg5 {[%clk 0:00:20.1]} 25... Qxd4+ {[%clk 0:01:06.5]} 26. Kh1 {[%clk 0:00:18]}
26... Ne4 {[%clk 0:01:04.3]} 27. Bxe7 {[%clk 0:00:13.7]} 27... Nf2+ {[%clk
0:00:57.5]} 28. Kg2 {[%clk 0:00:13.1]} 28... Nxh3 {[%clk 0:00:56.7]} 29. Kxh3
{[%clk 0:00:10.5]} 29... Qc3+ {[%clk 0:00:49.6]} 30. Kg2 {[%clk 0:00:10.1]}
30... Qxc2+ {[%clk 0:00:48.6]} 31. Re2 {[%clk 0:00:08.6]} 31... Qxe2+ {[%clk
0:00:32]} 32. Qxe2 {[%clk 0:00:08]} 32... Rxf1 {[%clk 0:00:32.3]} 33. Bxf8
{[%clk 0:00:07.6]} 33... Rxf8 {[%clk 0:00:32.5]} 34. Qe6+ {[%clk 0:00:07.2]}
34... Kh7 {[%clk 0:00:32.7]} 35. Qh3+ {[%clk 0:00:06.6]} 35... Kg8 {[%clk
0:00:30.6]} 36. Qe6+ {[%clk 0:00:06.7]} 36... Rf7 {[%clk 0:00:31]} 37. Qe8+
{[%clk 0:00:06.3]} 37... Bf8 {[%clk 0:00:30.5]} 38. Qe6 {[%clk 0:00:04.4]} 38...
Kg7 {[%clk 0:00:28.7]} 39. a3 {[%clk 0:00:03.1]} 39... a6 {[%clk 0:00:28.8]} 40.
a4 {[%clk 0:00:03.2]} 40... Bc5 {[%clk 0:00:27.6]} 41. Qe8 {[%clk 0:00:01.4]}
41... Be7 {[%clk 0:00:24.3]} 42. Kg3 {[%clk 0:00:02.3]} 42... Bf6 {[%clk
0:00:24.6]} 43. Qc8 {[%clk 0:00:02]} 43... d4 {[%clk 0:00:23.1]} 0-1

[Event "*** Titled Tuesday Blitz"]
[Site "Chess.com"]
[Date "2020.05.26"]
[Round "4"]
[White "Koksik_13"]
[Black "LiamVrolijk"]
[Result "1-0"]
[WhiteElo "2560"]
[BlackElo "2779"]
[TimeControl "180+1"]
[EndTime "10:38:49 PDT"]
[Termination "Koksik_13 won by resignation"]

1. d4 {[%clk 0:03:00.9]} 1... Nf6 {[%clk 0:02:59.4]} 2. Nc3 {[%clk 0:03:00.9]}
2... d5 {[%clk 0:02:58.8]} 3. Bf4 {[%clk 0:03:00.5]} 3... c5 {[%clk 0:02:58.1]}
4. e3 {[%clk 0:03:00.3]} 4... cxd4 {[%clk 0:02:57.4]} 5. exd4 {[%clk 0:02:59.6]}
5... a6 {[%clk 0:02:54.5]} 6. Bd3 {[%clk 0:02:59.4]} 6... Nc6 {[%clk 0:02:51.2]}
7. Nge2 {[%clk 0:02:59.9]} 7... Nb4 {[%clk 0:02:42.7]} 8. Ng3 {[%clk 0:02:50.8]}
8... Bg4 {[%clk 0:02:24.6]} 9. f3 {[%clk 0:02:45.5]} 9... Bh5 {[%clk 0:02:20.4]}
10. Nxh5 {[%clk 0:02:08.6]} 10... Nxh5 {[%clk 0:02:21.3]} 11. Be5 {[%clk
0:02:03.1]} 11... e6 {[%clk 0:02:14.6]} 12. a3 {[%clk 0:02:00.9]} 12... Nc6
{[%clk 0:02:14.3]} 13. Qd2 {[%clk 0:01:41.5]} 13... Nxe5 {[%clk 0:02:08]} 14.
dxe5 {[%clk 0:01:42.4]} 14... Qh4+ {[%clk 0:02:04.7]} 15. Qf2 {[%clk 0:01:33.3]}
15... Qxf2+ {[%clk 0:01:58.8]} 16. Kxf2 {[%clk 0:01:34.2]} 16... Bc5+ {[%clk
0:01:59.1]} 17. Kf1 {[%clk 0:01:33.8]} 17... Bd4 {[%clk 0:01:56]} 18. Re1 {[%clk
0:01:28]} 18... Nf4 {[%clk 0:01:51.5]} 19. g3 {[%clk 0:01:23.8]} 19... Nxd3
{[%clk 0:01:37.2]} 20. cxd3 {[%clk 0:01:24.7]} 20... Rc8 {[%clk 0:01:37.7]} 21.
Ke2 {[%clk 0:00:56.8]} 21... Bxc3 {[%clk 0:01:22.1]} 22. bxc3 {[%clk 0:00:57.7]}
22... Rxc3 {[%clk 0:01:22.6]} 23. Rb1 {[%clk 0:00:58]} 23... Rc7 {[%clk
0:01:05]} 24. Rb6 {[%clk 0:00:55.8]} 24... Kd7 {[%clk 0:01:05.3]} 25. Rhb1
{[%clk 0:00:53.8]} 25... Kc8 {[%clk 0:01:05.5]} 26. Ke3 {[%clk 0:00:50.8]} 26...
Rd8 {[%clk 0:01:05.3]} 27. Kd4 {[%clk 0:00:50.6]} 27... Rdd7 {[%clk 0:01:05.8]}
28. R6b2 {[%clk 0:00:38.7]} 28... Rc6 {[%clk 0:01:05.6]} 29. a4 {[%clk
0:00:38.8]} 29... Rdc7 {[%clk 0:01:05.1]} 30. f4 {[%clk 0:00:33.2]} 30... Rc2
{[%clk 0:00:58.8]} 31. f5 {[%clk 0:00:28.1]} 31... Rxb2 {[%clk 0:00:34.6]} 32.
Rxb2 {[%clk 0:00:29]} 32... g6 {[%clk 0:00:24.7]} 33. g4 {[%clk 0:00:28.1]}
33... Rc1 {[%clk 0:00:20.3]} 34. Rf2 {[%clk 0:00:18.2]} 34... Ra1 {[%clk
0:00:14.9]} 35. fxe6 {[%clk 0:00:17.1]} 35... fxe6 {[%clk 0:00:15.8]} 36. Kc5
{[%clk 0:00:15.1]} 36... Rxa4 {[%clk 0:00:10.6]} 37. Kd6 {[%clk 0:00:14.2]}
37... Kb8 {[%clk 0:00:11.2]} 38. Kxe6 {[%clk 0:00:12.3]} 38... Rxg4 {[%clk
0:00:10.4]} 39. Kd7 {[%clk 0:00:11.4]} 1-0

[Event "*** Titled Tuesday Blitz"]
[Site "Chess.com"]
[Date "2020.05.26"]
[Round "4"]
[White "Zurability"]
[Black "Alopekos"]
[Result "1-0"]
[WhiteElo "2716"]
[BlackElo "2510"]
[TimeControl "180+1"]
[EndTime "10:38:49 PDT"]
[Termination "Zurability won on time"]

1. d4 {[%clk 0:03:00.9]} 1... Nf6 {[%clk 0:02:59.5]} 2. Nf3 {[%clk 0:03:01.2]}
2... e6 {[%clk 0:02:59.6]} 3. c4 {[%clk 0:03:01]} 3... d5 {[%clk 0:02:59.5]} 4.
Nc3 {[%clk 0:02:55.8]} 4... c5 {[%clk 0:02:59.6]} 5. cxd5 {[%clk 0:02:52.7]}
5... Nxd5 {[%clk 0:02:59.5]} 6. a3 {[%clk 0:02:49.7]} 6... cxd4 {[%clk
0:02:46.9]} 7. Nxd5 {[%clk 0:02:20.9]} 7... Qxd5 {[%clk 0:02:45.8]} 8. Qxd4
{[%clk 0:02:21.5]} 8... Qxd4 {[%clk 0:02:38.4]} 9. Nxd4 {[%clk 0:02:22.4]} 9...
a6 {[%clk 0:02:15.6]} 10. b4 {[%clk 0:02:19.9]} 10... b5 {[%clk 0:01:49.9]} 11.
e4 {[%clk 0:02:14.2]} 11... Bb7 {[%clk 0:01:49.8]} 12. f3 {[%clk 0:02:14.3]}
12... Be7 {[%clk 0:01:34.8]} 13. Bb2 {[%clk 0:02:12.5]} 13... Bh4+ {[%clk
0:01:26]} 14. g3 {[%clk 0:02:07.3]} 14... Bf6 {[%clk 0:01:25.3]} 15. O-O-O
{[%clk 0:02:00.6]} 15... Nd7 {[%clk 0:01:14.5]} 16. Nb3 {[%clk 0:01:59]} 16...
Rc8+ {[%clk 0:00:57.2]} 17. Kb1 {[%clk 0:01:58.5]} 17... Bxb2 {[%clk 0:00:57.1]}
18. Kxb2 {[%clk 0:01:58.5]} 18... Ne5 {[%clk 0:00:50.4]} 19. Nc5 {[%clk
0:01:47.7]} 19... Rc7 {[%clk 0:00:38.8]} 20. Be2 {[%clk 0:01:36.3]} 20... Nd7
{[%clk 0:00:26.5]} 21. Nxb7 {[%clk 0:01:34.3]} 21... Rxb7 {[%clk 0:00:26.6]} 22.
Rd6 {[%clk 0:01:35.2]} 22... Rb6 {[%clk 0:00:26.6]} 23. Rhd1 {[%clk 0:01:32.1]}
23... Rxd6 {[%clk 0:00:20.4]} 24. Rxd6 {[%clk 0:01:33]} 24... Nb8 {[%clk
0:00:21.2]} 25. Rb6 {[%clk 0:01:23]} 25... Ke7 {[%clk 0:00:20.8]} 26. Rb7+
{[%clk 0:01:23.2]} 26... Kf6 {[%clk 0:00:19.8]} 27. f4 {[%clk 0:01:23.4]} 27...
Rd8 {[%clk 0:00:11.1]} 28. e5+ {[%clk 0:01:17.9]} 28... Kg6 {[%clk 0:00:06.4]}
29. Bf3 {[%clk 0:00:56.5]} 29... f5 {[%clk 0:00:03.5]} 30. Re7 {[%clk
0:00:50.3]} 30... Rd3 {[%clk 0:00:01.9]} 31. Bb7 {[%clk 0:00:46.3]} 31... Nd7
{[%clk 0:00:01.6]} 32. Rxe6+ {[%clk 0:00:42.8]} 32... Kf7 {[%clk 0:00:02.2]} 33.
Rxa6 {[%clk 0:00:43]} 33... Ke7 {[%clk 0:00:02.9]} 34. Bc6 {[%clk 0:00:41.9]}
34... Rd2+ {[%clk 0:00:02.7]} 35. Kc3 {[%clk 0:00:41.7]} 35... Rd1 {[%clk
0:00:03.2]} 36. Bxb5 {[%clk 0:00:39.6]} 36... Nf8 {[%clk 0:00:02.3]} 37. Ra7+
{[%clk 0:00:38.3]} 37... Kd8 {[%clk 0:00:02.8]} 38. Rxg7 {[%clk 0:00:36.8]}
38... Rc1+ {[%clk 0:00:03.1]} 39. Kb2 {[%clk 0:00:35.1]} 39... Rh1 {[%clk
0:00:03]} 40. Rf7 {[%clk 0:00:34.6]} 40... Rxh2+ {[%clk 0:00:03]} 41. Kb3 {[%clk
0:00:33.2]} 41... Ne6 {[%clk 0:00:03.7]} 42. Bc4 {[%clk 0:00:31.4]} 42... Nd4+
{[%clk 0:00:03.8]} 43. Kc3 {[%clk 0:00:31.7]} 43... Nf3 {[%clk 0:00:02.4]} 44.
e6 {[%clk 0:00:29.9]} 1-0

[Event "*** Titled Tuesday Blitz"]
[Site "Chess.com"]
[Date "2020.05.26"]
[Round "4"]
[White "VMikhalevski"]
[Black "TST2014"]
[Result "1-0"]
[WhiteElo "2745"]
[BlackElo "2516"]
[TimeControl "180+1"]
[EndTime "10:38:53 PDT"]
[Termination "VMikhalevski won on time"]

1. Nf3 {[%clk 0:02:53.9]} 1... Nf6 {[%clk 0:02:59.6]} 2. g3 {[%clk 0:02:52.8]}
2... d5 {[%clk 0:02:59.2]} 3. Bg2 {[%clk 0:02:52.3]} 3... Nc6 {[%clk 0:02:57.5]}
4. O-O {[%clk 0:02:48.1]} 4... e5 {[%clk 0:02:57.3]} 5. c4 {[%clk 0:02:48]} 5...
d4 {[%clk 0:02:51.2]} 6. d3 {[%clk 0:02:45]} 6... a5 {[%clk 0:02:45.4]} 7. Na3
{[%clk 0:02:43.4]} 7... Be7 {[%clk 0:02:43]} 8. Nb5 {[%clk 0:02:42.5]} 8... h6
{[%clk 0:02:38.1]} 9. e3 {[%clk 0:02:42.3]} 9... dxe3 {[%clk 0:02:27.1]} 10.
Bxe3 {[%clk 0:02:34.6]} 10... O-O {[%clk 0:02:21.7]} 11. Re1 {[%clk 0:02:29.4]}
11... Bb4 {[%clk 0:02:12.5]} 12. Re2 {[%clk 0:02:25.3]} 12... Bf5 {[%clk
0:02:08.2]} 13. a3 {[%clk 0:02:20.7]} 13... Bxd3 {[%clk 0:01:53.5]} 14. axb4
{[%clk 0:02:18.9]} 14... Bxe2 {[%clk 0:01:52.9]} 15. Qxe2 {[%clk 0:02:17.3]}
15... axb4 {[%clk 0:01:24.8]} 16. Rd1 {[%clk 0:02:10.1]} 16... Qe7 {[%clk
0:01:22.6]} 17. Nh4 {[%clk 0:02:07.7]} 17... Rfd8 {[%clk 0:01:15.3]} 18. Re1
{[%clk 0:01:58.7]} 18... Qd7 {[%clk 0:01:05.8]} 19. Qf1 {[%clk 0:01:54.4]} 19...
Ra2 {[%clk 0:00:56.6]} 20. b3 {[%clk 0:01:50.2]} 20... Qd3 {[%clk 0:00:55.9]}
21. Rb1 {[%clk 0:01:43.2]} 21... Qxf1+ {[%clk 0:00:43.9]} 22. Bxf1 {[%clk
0:01:39]} 22... Ng4 {[%clk 0:00:41.1]} 23. Bc5 {[%clk 0:01:09.8]} 23... Rdd2
{[%clk 0:00:35.5]} 24. Nf3 {[%clk 0:01:05.2]} 24... Rdb2 {[%clk 0:00:32.5]} 25.
Re1 {[%clk 0:00:54.4]} 25... Nxf2 {[%clk 0:00:31.5]} 26. Nxc7 {[%clk 0:00:49]}
26... Ng4 {[%clk 0:00:23.7]} 27. Nd5 {[%clk 0:00:44.2]} 27... Rxb3 {[%clk
0:00:22.5]} 28. Bh3 {[%clk 0:00:38.5]} 28... Rxf3 {[%clk 0:00:15.1]} 29. Bxg4
{[%clk 0:00:38.3]} 29... Rd3 {[%clk 0:00:13.9]} 30. Nxb4 {[%clk 0:00:33.4]}
30... Nxb4 {[%clk 0:00:10.8]} 31. Bxb4 {[%clk 0:00:33.4]} 31... Rd4 {[%clk
0:00:10.7]} 32. Bf3 {[%clk 0:00:28.7]} 32... Rxc4 {[%clk 0:00:08.5]} 33. Bd5
{[%clk 0:00:28.5]} 33... Rxb4 {[%clk 0:00:08.8]} 34. Bxa2 {[%clk 0:00:28.3]}
34... Rb5 {[%clk 0:00:08.9]} 35. Rf1 {[%clk 0:00:27.1]} 35... Rb2 {[%clk
0:00:05.5]} 36. Bxf7+ {[%clk 0:00:26]} 36... Kh7 {[%clk 0:00:05.5]} 37. Re1
{[%clk 0:00:24.5]} 37... b5 {[%clk 0:00:02.7]} 38. Rxe5 {[%clk 0:00:23.6]} 38...
b4 {[%clk 0:00:03.3]} 39. Re6 {[%clk 0:00:22.5]} 39... g5 {[%clk 0:00:01.5]} 40.
Rb6 {[%clk 0:00:22.2]} 40... Kg7 {[%clk 0:00:01.7]} 41. Bh5 {[%clk 0:00:21.9]}
1-0

[Event "*** Titled Tuesday Blitz"]
[Site "Chess.com"]
[Date "2020.05.26"]
[Round "4"]
[White "Lagravesamuell"]
[Black "Mikhail_Biryukov"]
[Result "0-1"]
[WhiteElo "2469"]
[BlackElo "2644"]
[TimeControl "180+1"]
[EndTime "10:38:54 PDT"]
[Termination "Mikhail_Biryukov won by resignation"]

1. d4 {[%clk 0:03:00.5]} 1... Nf6 {[%clk 0:02:58.9]} 2. c4 {[%clk 0:03:00.1]}
2... e6 {[%clk 0:02:59.5]} 3. g3 {[%clk 0:02:57.8]} 3... d5 {[%clk 0:02:57.8]}
4. Bg2 {[%clk 0:02:57.9]} 4... dxc4 {[%clk 0:02:58]} 5. Nf3 {[%clk 0:02:57.8]}
5... Bb4+ {[%clk 0:02:57.7]} 6. Bd2 {[%clk 0:02:57.6]} 6... c5 {[%clk
0:02:58.3]} 7. Bxb4 {[%clk 0:02:32.6]} 7... cxb4 {[%clk 0:02:59.2]} 8. Ne5
{[%clk 0:02:33.2]} 8... O-O {[%clk 0:02:58.7]} 9. O-O {[%clk 0:02:31.9]} 9...
Nc6 {[%clk 0:02:58.7]} 10. Nxc6 {[%clk 0:02:23.6]} 10... bxc6 {[%clk 0:02:59.6]}
11. e3 {[%clk 0:02:23.3]} 11... Qb6 {[%clk 0:02:52.4]} 12. Nd2 {[%clk 0:02:20]}
12... Ba6 {[%clk 0:02:52.3]} 13. Re1 {[%clk 0:02:13.5]} 13... Nd5 {[%clk
0:02:38.6]} 14. Ne4 {[%clk 0:02:05.6]} 14... Rfe8 {[%clk 0:02:25]} 15. Qc2
{[%clk 0:01:50.2]} 15... e5 {[%clk 0:02:21.8]} 16. Nd6 {[%clk 0:01:44.8]} 16...
exd4 {[%clk 0:02:14.6]} 17. Nxe8 {[%clk 0:01:22.5]} 17... d3 {[%clk 0:02:11.6]}
18. Qa4 {[%clk 0:01:14.6]} 18... Bb5 {[%clk 0:02:11.1]} 19. Nf6+ {[%clk
0:01:14]} 19... Nxf6 {[%clk 0:02:05.1]} 20. Qxb4 {[%clk 0:01:13]} 20... a5
{[%clk 0:01:57.7]} 21. Qd2 {[%clk 0:01:01.4]} 21... a4 {[%clk 0:01:53.8]} 22. b3
{[%clk 0:00:47.9]} 22... cxb3 {[%clk 0:01:23.8]} 23. axb3 {[%clk 0:00:47.3]}
23... a3 {[%clk 0:01:24.7]} 24. Qb4 {[%clk 0:00:45.2]} 24... a2 {[%clk
0:01:20.2]} 25. Red1 {[%clk 0:00:41.4]} 25... h6 {[%clk 0:01:02.1]} 26. Rd2
{[%clk 0:00:35.3]} 26... Qa6 {[%clk 0:01:02.3]} 27. Qc3 {[%clk 0:00:23.6]} 27...
Qa3 {[%clk 0:00:29.3]} 28. Qb2 {[%clk 0:00:21.1]} 28... Qb4 {[%clk 0:00:29.5]}
29. Rxa2 {[%clk 0:00:20]} 29... Rd8 {[%clk 0:00:29.3]} 30. Qa3 {[%clk
0:00:18.9]} 30... Qc3 {[%clk 0:00:28.2]} 31. b4 {[%clk 0:00:17.8]} 31... Qc4
{[%clk 0:00:27]} 32. Ra1 {[%clk 0:00:12.6]} 32... Ne4 {[%clk 0:00:26.6]} 33.
Bxe4 {[%clk 0:00:11.5]} 33... Qxe4 {[%clk 0:00:26.7]} 34. Qa5 {[%clk 0:00:11.5]}
34... Rd7 {[%clk 0:00:24.1]} 35. Qb6 {[%clk 0:00:10.4]} 35... Kh7 {[%clk
0:00:23.3]} 36. Ra7 {[%clk 0:00:08.4]} 36... Rxa7 {[%clk 0:00:20]} 37. Qxa7
{[%clk 0:00:08.9]} 37... Qxb4 {[%clk 0:00:20.7]} 38. Qa2 {[%clk 0:00:05.2]}
38... Bc4 {[%clk 0:00:19]} 39. Qb2 {[%clk 0:00:05.5]} 39... Qxb2 {[%clk
0:00:18.1]} 40. Rxb2 {[%clk 0:00:06.4]} 40... c5 {[%clk 0:00:18.5]} 41. Kf1
{[%clk 0:00:06.7]} 41... d2+ {[%clk 0:00:18.2]} 0-1

[Event "*** Titled Tuesday Blitz"]
[Site "Chess.com"]
[Date "2020.05.26"]
[Round "4"]
[White "nitpicker"]
[Black "2008king"]
[Result "0-1"]
[WhiteElo "2276"]
[BlackElo "2107"]
[TimeControl "180+1"]
[EndTime "10:38:54 PDT"]
[Termination "2008king won on time"]

1. d4 {[%clk 0:03:00.9]} 1... d5 {[%clk 0:02:59.6]} 2. c4 {[%clk 0:03:00.7]}
2... c6 {[%clk 0:02:59.2]} 3. Nf3 {[%clk 0:02:59.5]} 3... Nf6 {[%clk 0:02:58.7]}
4. Qb3 {[%clk 0:02:59.2]} 4... e6 {[%clk 0:02:56]} 5. Nc3 {[%clk 0:02:58.4]}
5... Bd6 {[%clk 0:02:55.2]} 6. Bg5 {[%clk 0:02:53.7]} 6... Nbd7 {[%clk
0:02:53.8]} 7. g3 {[%clk 0:02:36.6]} 7... h6 {[%clk 0:02:52.6]} 8. Bf4 {[%clk
0:02:33.9]} 8... Bxf4 {[%clk 0:02:50.2]} 9. gxf4 {[%clk 0:02:33.9]} 9... Qc7
{[%clk 0:02:50.4]} 10. e3 {[%clk 0:02:33.2]} 10... O-O {[%clk 0:02:48.2]} 11.
Bg2 {[%clk 0:02:28.7]} 11... b6 {[%clk 0:02:45.8]} 12. O-O {[%clk 0:02:26.6]}
12... Bb7 {[%clk 0:02:45.7]} 13. Rac1 {[%clk 0:02:24.5]} 13... Qd6 {[%clk
0:02:45.4]} 14. c5 {[%clk 0:02:13.8]} 14... Qe7 {[%clk 0:02:40.3]} 15. Ne5
{[%clk 0:02:06.4]} 15... Rfc8 {[%clk 0:02:38.7]} 16. Rfe1 {[%clk 0:01:55.4]}
16... Rab8 {[%clk 0:02:37]} 17. Na4 {[%clk 0:01:47.6]} 17... Ba8 {[%clk
0:02:23.8]} 18. Qa3 {[%clk 0:01:40.4]} 18... b5 {[%clk 0:02:12]} 19. Nc3 {[%clk
0:01:27.8]} 19... b4 {[%clk 0:02:12]} 20. Qxa7 {[%clk 0:01:28.1]} 20... bxc3
{[%clk 0:02:11.2]} 21. bxc3 {[%clk 0:01:28.7]} 21... Qd8 {[%clk 0:02:09.6]} 22.
Rb1 {[%clk 0:01:19.4]} 22... Nxe5 {[%clk 0:01:56.5]} 23. fxe5 {[%clk 0:01:18.6]}
23... Ne4 {[%clk 0:01:56.8]} 24. c4 {[%clk 0:01:08.6]} 24... Nd2 {[%clk
0:01:52.1]} 25. Rb6 {[%clk 0:01:05.5]} 25... Nxc4 {[%clk 0:01:46.9]} 26. Rxb8
{[%clk 0:01:00.4]} 26... Rxb8 {[%clk 0:01:47.8]} 27. a4 {[%clk 0:00:54.9]} 27...
Rb2 {[%clk 0:01:35.4]} 28. Bf1 {[%clk 0:00:54.2]} 28... Nd2 {[%clk 0:01:32]} 29.
Bg2 {[%clk 0:00:50.6]} 29... Qb8 {[%clk 0:01:25.3]} 30. Qxb8+ {[%clk 0:00:32.9]}
30... Rxb8 {[%clk 0:01:26.2]} 31. Ra1 {[%clk 0:00:31.7]} 31... Nc4 {[%clk
0:01:21.2]} 32. Bf1 {[%clk 0:00:31]} 32... Na5 {[%clk 0:01:18]} 33. Bd3 {[%clk
0:00:27.9]} 33... Rb4 {[%clk 0:01:17.8]} 34. Kf1 {[%clk 0:00:26]} 34... Bb7
{[%clk 0:01:17.8]} 35. Ke2 {[%clk 0:00:26.3]} 35... Nc4 {[%clk 0:01:17.8]} 36.
f3 {[%clk 0:00:19.2]} 36... Nb2 {[%clk 0:01:13.6]} 37. Bc2 {[%clk 0:00:17.2]}
37... Ba6+ {[%clk 0:01:13.4]} 38. Kd2 {[%clk 0:00:16.6]} 38... Nc4+ {[%clk
0:01:10.7]} 39. Kc3 {[%clk 0:00:16.9]} 39... Rb8 {[%clk 0:01:09.7]} 40. e4
{[%clk 0:00:17.3]} 40... Na5 {[%clk 0:01:08.4]} 41. exd5 {[%clk 0:00:15]} 41...
exd5 {[%clk 0:01:09.3]} 42. f4 {[%clk 0:00:14.5]} 42... Bc4 {[%clk 0:01:07]} 43.
f5 {[%clk 0:00:14.3]} 43... Kf8 {[%clk 0:01:04.6]} 44. Rg1 {[%clk 0:00:13.5]}
44... Rb7 {[%clk 0:00:53.1]} 45. h4 {[%clk 0:00:13.2]} 45... h5 {[%clk
0:00:43.8]} 46. Rg5 {[%clk 0:00:11.8]} 46... Bb3 {[%clk 0:00:39.3]} 47. Bd3
{[%clk 0:00:10.8]} 47... Nc4 {[%clk 0:00:39.1]} 48. f6 {[%clk 0:00:09.7]} 48...
g6 {[%clk 0:00:38.1]} 49. e6 {[%clk 0:00:08.5]} 49... Bxa4 {[%clk 0:00:36.6]}
50. e7+ {[%clk 0:00:06.4]} 50... Ke8 {[%clk 0:00:36.9]} 51. Bxg6 {[%clk
0:00:06.1]} 51... fxg6 {[%clk 0:00:36.1]} 52. Rxg6 {[%clk 0:00:06.3]} 52... Rb3+
{[%clk 0:00:32.3]} 53. Kc2 {[%clk 0:00:02.6]} 53... Rg3+ {[%clk 0:00:32.2]} 0-1